bitfinex/quotes_ETHUSD_20251017
["timestamp","ask_amount","ask_price","bid_price","bid_amount"]
[1760716172821,2.63829653,3793.2,3793.1,0.001]
[1760716173120,0.002,3793.2,3793.1,0.001]
[1760716173659,0.002,3793.2,3793.1,0.2238]
[1760716174049,0.002,3793.2,3793.1,0.6575]
[1760716174255,0.002,3793.2,3793.1,0.2238]
[1760716174450,0.002,3793.2,3793.1,3.57989628]
[1760716174667,0.002,3793.2,3793.1,3.71109628]
[1760716176257,0.002,3793.2,3793.1,3.73745994]
[1760716176447,0.002,3793.2,3793.1,3.71109628]
[1760716177473,0.002,3793.2,3793.1,3.73745994]
[1760716177795,0.002,3793.2,3793.1,4.34469628]
[1760716177974,0.002,3793.2,3793.1,3.71109628]
[1760716178149,0.002,3793.2,3793.1,3.27739628]
[1760716178341,0.002,3793.2,3793.1,2.99136603]
[1760716178752,0.002,3793.2,3793.1,3.42506603]
[1760716179177,0.002,3793.2,3793.1,3.29386603]
[1760716179364,0.002,3793.2,3793.1,0.7887]
[1760716179548,0.002,3793.2,3793.1,3.42506603]
[1760716179751,0.002,3793.2,3793.1,3.76757263]
[1760716182462,0.0012,3793.2,3793.1,4.40117263]
[1760716183794,0.0012,3793.2,3793.1,4.42753629]
[1760716184190,0.0012,3793.2,3793.1,4.40117263]
[1760716185593,0.0012,3793.2,3793.1,6.12917263]
[1760716186182,0.0012,3793.2,3793.1,6.2356225]
[1760716186694,0.0012,3793.2,3793.1,19.3265645]
[1760716186881,0.0012,3793.2,3793.1,18.7978085]
[1760716187598,0.0012,3793.2,3793.1,20.1630705]
[1760716187894,0.002,3793.6,3793.5,3.26968804]
[1760716188093,0.002,3793.6,3793.5,24.17700181]
[1760716188258,0.002,3793.6,3793.5,24.26272781]
[1760716188464,0.002,3793.6,3793.5,20.52061381]
[1760716188764,0.002,3793.6,3793.5,32.23804681]
[1760716189168,0.002,3793.6,3793.5,31.36284681]
[1760716189397,0.002,3793.6,3793.5,15.2379835]
[1760716189568,0.002,3793.6,3793.5,8.1828935]
[1760716190008,0.002,3793.6,3793.5,4.3121865]
[1760716190398,0.002,3793.6,3793.5,4.7458865]
[1760716191379,0.002,3793.6,3793.5,21.5562515]
[1760716191702,0.002,3793.6,3793.5,20.4554335]
[1760716191902,0.002,3793.6,3793.5,15.1701585]
[1760716192072,0.002,3793.6,3793.5,14.7557605]
[1760716192273,0.002,3793.6,3793.5,4.7458865]
[1760716192575,0.002,3793.6,3793.5,14.7625235]
[1760716193081,0.002,3793.6,3793.5,1.04249846]
[1760716193303,0.002,3793.6,3793.5,2.63608804]
[1760716193597,0.002,3793.6,3793.5,2.66244892]
[1760716193770,0.002,3793.6,3793.4,4.36415753]
[1760716193970,0.002,3793.6,3793.4,2.63615753]
[1760716194171,0.002,3793.6,3793.1,2.6372973]
[1760716194172,0.002,3793.6,3793.5,2.63608804]
[1760716194372,0.002,3793.6,3793.4,2.63608866]
[1760716194672,0.002,3793.6,3793.4,2.63615753]
[1760716194900,0.002,3793.6,3793.4,2.63615676]
[1760716195104,0.002,3793.6,3793.1,2.63735296]
[1760716195430,0.002,3793.6,3793.1,0.001]
[1760716195581,0.1015,3793.5,3793.2,2.6362964]
[1760716195787,0.1015,3793.5,3793.1,0.001]
[1760716196105,0.002,3793.6,3793.2,2.6362745]
[1760716196485,0.002,3793.6,3793.3,2.63622632]
[1760716196868,0.002,3793.6,3793.1,2.63734508]
[1760716197066,0.002,3793.6,3793.1,0.001]
[1760716197311,0.1015,3793.5,3793.1,0.001]
[1760716197605,0.1015,3793.4,3793.1,0.001]
[1760716198209,0.002,3793.6,3793.1,0.001]
[1760716198904,0.1015,3793.5,3793.1,0.001]
[1760716199071,0.002,3793.6,3793.1,0.001]
[1760716199267,0.1015,3793.5,3793.1,0.001]
[1760716199572,0.1015,3793.4,3793.1,0.001]
[1760716199971,0.1015,3793.3,3793.1,0.001]
[1760716200197,2.63610365,3793.5,3793.3,0.1312]
[1760716200580,2.63615753,3793.4,3793.3,0.1312]
[1760716200789,2.63629653,3793.2,3793.1,0.001]
[1760716201076,2.76749653,3793.2,3793.1,0.001]
[1760716201304,2.86899653,3793.2,3793.1,0.001]
[1760716201720,0.1035,3793.6,3793.1,0.001]
[1760716202004,0.002,3793.6,3793.1,0.1322]
[1760716202205,0.002,3793.6,3793.5,0.1312]
[1760716202405,0.002,3793.6,3793.1,0.001]
[1760716202406,0.1015,3793.5,3793.1,0.001]
[1760716202607,0.1015,3793.4,3793.1,0.001]
[1760716202807,2.63808232,3793.6,3793.1,0.001]
[1760716202808,0.002,3793.6,3793.1,0.001]
[1760716203106,0.1015,3793.5,3793.1,0.001]
[1760716203315,2.63629653,3793.2,3793.1,0.001]
[1760716203510,3.27519198,3793.2,3793.1,0.001]
[1760716203807,0.002,3793.6,3793.1,0.001]
[1760716204123,2.63629653,3793.2,3793.1,0.001]
[1760716204325,2.73779653,3793.2,3793.1,0.001]
[1760716204518,0.1015,3793.2,3793.1,0.001]
[1760716204901,0.002,3793.6,3793.1,0.001]
[1760716205316,0.002,3793.6,3793.3,0.6336]
[1760716205515,0.002,3793.6,3793.5,2.63608804]
[1760716205716,0.002,3793.6,3793.5,3.29354955]
[1760716206028,0.002,3793.6,3793.5,4.40011043]
[1760716206190,0.0012,3793.6,3793.5,4.40011043]
[1760716206389,0.0012,3793.6,3793.5,18.94191255]
[1760716207024,0.0012,3793.6,3793.5,6.10174955]
[1760716207233,0.0012,3793.6,3793.5,1.728]
[1760716207448,0.0012,3793.6,3793.2,0.2221]
[1760716207729,0.0012,3793.6,3793.5,2.63608804]
[1760716208103,0.0012,3793.6,3793.5,3.08268804]
[1760716208533,0.0012,3793.6,3793.5,2.63608804]
[1760716208829,0.0012,3793.6,3793.5,3.86828719]
[1760716209130,0.0012,3793.6,3793.5,6.22988719]
[1760716209429,1e-08,3793.7,3793.6,4.99761855]
[1760716209628,1e-08,3793.7,3793.6,8.31090355]
[1760716209928,1e-08,3793.7,3793.6,10.02968297]
[1760716210112,1e-08,3793.7,3793.6,25.67321028]
[1760716212418,1e-08,3793.7,3793.6,25.80441028]
[1760716212917,1e-08,3794.1,3794.0,23.37954464]
[1760716213118,1e-08,3794.1,3794.0,20.45436764]
[1760716213311,1e-08,3794.1,3794.0,17.17300517]
[1760716213711,0.96015374,3794.6,3794.5,3.26899333]
[1760716213932,0.96015374,3794.6,3794.5,28.07436864]
[1760716214229,0.96015374,3794.6,3794.5,27.40285864]
[1760716214400,0.96015374,3794.6,3794.5,27.53405864]
[1760716214601,0.96015374,3794.6,3794.5,29.58981596]
[1760716215236,0.96015374,3794.6,3794.5,21.29214965]
[1760716215434,0.65,3794.8,3794.7,10.30795543]
[1760716215607,0.65,3794.8,3794.7,12.03595543]
[1760716215808,0.65,3794.8,3794.7,13.26815458]
[1760716216234,0.65,3794.8,3794.7,6.22905358]
[1760716216427,0.65,3794.8,3794.7,17.23358258]
[1760716216626,0.65,3794.8,3794.7,15.88111058]
[1760716216827,0.675,3795.0,3794.7,5.14885358]
[1760716217032,0.2142,3794.9,3794.8,2.63513328]
[1760716217337,0.3155,3794.9,3794.8,2.63518498]
[1760716217639,0.3155,3794.9,3794.0,2.63247953]
[1760716217813,0.3155,3794.9,3794.1,0.02635671]
[1760716218019,0.3155,3794.9,3794.3,1.728]
[1760716218226,0.3155,3794.9,3793.4,0.4466]
[1760716218436,0.1013,3794.8,3793.5,2.598682]
[1760716218738,0.1013,3794.8,3794.4,2.6354217]
[1760716218937,0.1013,3794.8,3794.3,2.63551716]
[1760716219147,0.1013,3794.8,3794.3,0.52711952]
[1760716219348,0.1013,3794.7,3794.3,3.1626444]
[1760716219644,0.1013,3794.6,3794.3,3.1626444]
[1760716219849,0.1013,3794.6,3794.3,0.52711952]
[1760716220025,0.1013,3794.5,3793.9,2.63576522]
[1760716220224,0.1013,3794.5,3793.4,1.728]
[1760716220225,0.1013,3794.5,3793.3,2.63619819]
[1760716220447,0.1013,3794.5,3793.4,0.02636157]
[1760716220652,0.2142,3794.9,3794.4,2.63542703]
[1760716220848,0.1013,3794.8,3793.5,0.001]
[1760716221048,2.7385504,3794.8,3793.6,1.73725273]
[1760716221349,2.7385504,3794.8,3793.5,0.001]
[1760716221350,0.1894,3793.7,3793.5,0.001]
[1760716221726,0.1022,3793.6,3793.5,0.001]
[1760716222320,0.002,3794.8,3793.5,0.001]
[1760716222515,0.103,3794.7,3793.5,0.001]
[1760716222717,0.1876,3793.6,3793.5,0.001]
[1760716222949,2.82361855,3793.6,3793.5,0.001]
[1760716223151,2.63629653,3793.2,3793.1,0.001]
[1760716223533,2.73919653,3793.2,3793.1,0.001]
[1760716223728,0.1876,3793.6,3793.1,0.001]
[1760716223940,2.73919653,3793.2,3793.1,0.001]
[1760716224455,3.27673238,3793.2,3793.1,0.001]
[1760716224662,3.27673238,3793.2,3792.8,0.001]
[1760716224982,2.63678312,3792.5,3792.4,0.001]
[1760716225467,2.74048312,3792.5,3792.4,0.001]
[1760716225667,3.27820084,3792.5,3792.4,0.001]
[1760716226230,5.00620084,3792.5,3792.4,0.001]
[1760716226436,2.63794612,3790.9,3789.7,0.2318]
[1760716226726,0.1868,3789.8,3788.6,0.4406]
[1760716227031,0.107,3789.7,3787.8,2.63999497]
[1760716227228,0.1868,3789.8,3787.0,0.6724]
[1760716227229,2.63916984,3789.1,3788.0,5.721846]
[1760716227453,0.099,3789.0,3788.2,2.63971363]
[1760716227654,0.2108,3788.9,3788.1,2.87164511]
[1760716227951,0.1001,3788.8,3788.2,0.31356446]
[1760716228128,0.2108,3788.9,3787.3,0.2318]
[1760716228449,0.1868,3789.8,3788.6,2.63948166]
[1760716228450,0.1001,3789.7,3788.6,2.63948166]
[1760716228649,2.63881499,3789.6,3788.2,2.63975245]
[1760716228954,2.7388321,3789.7,3788.3,2.63970646]
[1760716229250,0.1001,3789.7,3788.1,0.2318]
[1760716229455,0.1001,3789.7,3788.2,0.02639776]
[1760716229627,0.1001,3789.7,3788.3,0.19861978]
[1760716229826,0.1001,3789.7,3788.1,1.9598]
[1760716230056,2.73884219,3789.7,3788.2,2.63977614]
[1760716230404,0.1012,3789.6,3788.1,0.2318]
[1760716230547,0.1012,3789.6,3788.3,0.02639706]
[1760716230720,0.1868,3789.8,3788.7,2.63936675]
[1760716231135,0.1868,3789.8,3788.7,0.52790033]
[1760716231339,0.1868,3789.8,3789.0,2.6391766]
[1760716231663,0.1868,3789.8,3788.9,2.63923486]
[1760716231870,0.1868,3789.8,3788.8,2.63933219]
[1760716232067,0.1868,3789.8,3788.2,0.6336]
[1760716232068,0.1012,3789.7,3788.7,2.63936154]
[1760716232237,0.1012,3789.7,3788.6,2.63946938]
[1760716232435,0.1012,3789.7,3788.7,2.63941157]
[1760716232742,2.63886442,3789.6,3788.6,0.52791011]
[1760716232952,2.63886271,3789.6,3788.2,3.08034982]
[1760716233154,2.63886271,3789.6,3788.2,0.4406]
[1760716233695,0.2086,3788.3,3787.3,0.2318]
[1760716233859,0.2086,3788.3,3787.3,2.87219561]
[1760716234042,0.2086,3788.3,3787.5,2.64019718]
[1760716234258,0.2086,3788.3,3787.7,2.64012097]
[1760716234453,0.2086,3788.3,3787.6,2.6401891]
[1760716234679,0.2086,3788.3,3787.7,2.64011018]
[1760716235005,2.6393484,3788.9,3787.4,2.9275531]
[1760716235006,0.2075,3788.7,3787.4,0.72781956]
[1760716235307,2.84697826,3788.7,3787.6,2.64012763]
[1760716235475,0.2075,3788.7,3788.2,0.1312]
[1760716235670,2.63895165,3789.4,3788.4,2.6395988]
[1760716235863,0.41397584,3789.5,3788.3,0.25819706]
[1760716235864,0.1312,3789.3,3788.6,0.1312]
[1760716236393,0.1312,3789.3,3788.7,2.63936792]
[1760716236568,0.1868,3789.8,3788.7,0.30345106]
[1760716236767,0.318,3789.8,3789.1,0.1312]
[1760716237106,2.73775085,3789.7,3789.1,0.1312]
[1760716237293,0.099,3789.7,3789.1,0.1312]
[1760716237757,0.099,3789.6,3787.5,0.4406]
[1760716237957,0.1868,3789.8,3788.4,0.1312]
[1760716237958,0.1312,3789.0,3788.4,0.1312]
[1760716238380,0.099,3789.5,3788.3,0.2318]
[1760716238381,0.1312,3789.3,3788.6,0.1312]
[1760716238603,2.63908903,3789.2,3788.6,0.1312]
[1760716238797,0.1868,3789.8,3788.7,0.02639427]
[1760716238986,0.1312,3789.7,3789.1,0.1312]
[1760716239186,0.1868,3789.8,3789.1,0.2318]
[1760716239390,0.1868,3789.8,3789.3,0.1312]
[1760716239881,2.73777797,3789.7,3789.3,0.1312]
[1760716240078,2.73785017,3789.6,3789.3,0.1312]
[1760716240275,2.82546869,3789.8,3788.7,2.63938257]
[1760716240276,2.63873353,3789.7,3788.7,2.63938257]
[1760716240577,2.63866669,3789.8,3789.3,0.1312]
[1760716240772,2.6387355,3789.7,3789.3,0.1312]
[1760716240997,0.0999,3789.7,3789.3,0.1312]
[1760716241296,0.0999,3789.7,3788.7,0.30799826]
[1760716241297,0.0999,3789.6,3789.0,0.1312]
[1760716241505,0.0999,3789.6,3788.8,2.63932468]
[1760716241506,0.1859,3789.9,3789.1,0.25819149]
[1760716241710,2.73856648,3789.8,3788.4,0.3]
[1760716241910,2.82450304,3789.9,3789.0,2.63917875]
[1760716242110,0.0999,3789.8,3788.4,0.3]
[1760716242318,2.63896724,3789.4,3788.5,0.31714972]
[1760716242480,0.0999,3789.7,3788.6,2.63943515]
[1760716242678,0.0999,3789.7,3788.6,2.63949431]
[1760716242880,2.63885898,3789.6,3788.6,2.63949431]
[1760716243093,2.63887807,3789.5,3788.6,2.63949431]
[1760716243407,0.0999,3789.7,3788.4,0.7406]
[1760716243615,0.1859,3789.9,3788.4,0.7406]
[1760716243616,2.63921125,3789.1,3788.4,0.3]
[1760716243800,0.0999,3789.2,3788.4,0.3]
[1760716244003,2.73900499,3789.2,3788.4,0.61715595]
[1760716244213,0.0999,3789.2,3788.4,0.3]
[1760716244413,0.2108,3788.5,3788.4,0.3]
[1760716244615,0.2097,3788.9,3788.4,0.3]
[1760716244803,2.63952022,3788.6,3788.4,0.3]
[1760716245116,2.63954588,3788.6,3788.4,0.3]
[1760716245450,0.2097,3788.9,3788.4,0.3]
[1760716245624,0.41398921,3789.8,3788.4,0.3]
[1760716245625,0.41398921,3789.8,3788.5,0.4406]
[1760716245794,0.41398921,3789.8,3788.4,0.3]
[1760716245795,2.63897613,3789.4,3788.4,0.3]
[1760716245994,0.1031,3789.6,3788.4,0.3]
[1760716246211,2.63908755,3789.2,3788.4,0.3]
[1760716246386,0.1031,3789.6,3788.4,0.3]
[1760716246387,2.63921083,3789.1,3788.4,0.3]
[1760716246587,2.63943792,3788.7,3788.4,0.3]
[1760716246795,0.2075,3788.8,3788.4,0.3]
[1760716246997,2.63956711,3788.5,3788.4,0.3]
[1760716247223,2.74376711,3788.5,3788.4,0.3]
[1760716248916,3.30284138,3788.5,3788.4,0.3]
[1760716249343,0.2075,3788.8,3788.4,0.3]
[1760716249643,2.63956711,3788.5,3788.4,0.3]
[1760716249947,2.74376711,3788.5,3788.4,0.3]
[1760716250506,2.63956711,3788.5,3788.4,0.3]
[1760716250736,2.74376711,3788.5,3788.4,0.3]
[1760716251060,3.3028366,3788.5,3788.4,0.3]
[1760716251700,2.74376711,3788.5,3788.4,0.3]
[1760716252501,2.87496711,3788.5,3788.4,0.3]
[1760716252727,4.60296711,3788.5,3788.4,0.3]
[1760716253435,4.49876711,3788.5,3788.4,0.3]
[1760716253828,4.49796711,3788.5,3788.4,0.3]
[1760716254024,4.60216711,3788.5,3788.4,0.3]
[1760716254231,5.3470766,3788.5,3788.4,0.3]
[1760716256209,4.49796711,3788.5,3788.4,0.3]
[1760716256409,4.36756711,3788.5,3788.4,0.3]
[1760716256838,4.47176711,3788.5,3788.4,0.3]
[1760716258223,4.36756711,3788.5,3788.4,0.3]
[1760716258851,4.47176711,3788.5,3788.4,0.3]
[1760716259039,2.74376711,3788.5,3788.4,0.301]
[1760716259349,3.52164518,3788.5,3788.4,0.301]
[1760716262968,5.10716402,3787.5,3787.4,0.001]
[1760716263269,5.42554058,3787.5,3787.4,0.001]
[1760716263568,38.81935131,3787.5,3787.4,0.001]
[1760716263738,27.07948431,3787.5,3787.4,0.001]
[1760716263930,21.56169231,3787.5,3787.4,0.001]
[1760716264568,5.32024058,3787.5,3787.4,0.001]
[1760716264765,5.42554058,3787.5,3787.4,0.001]
[1760716264940,32.84766831,3787.5,3787.4,0.001]
[1760716265267,11.33457089,3787.1,3787.0,0.001]
[1760716265470,13.14886488,3787.1,3787.0,0.001]
[1760716265631,6.14806988,3787.1,3787.0,0.001]
[1760716265837,14.27102188,3787.1,3787.0,0.001]
[1760716266167,9.87631793,3787.1,3787.0,0.001]
[1760716266339,9.22116614,3787.1,3787.0,0.001]
[1760716266536,6.61401114,3787.1,3787.0,0.001]
[1760716266868,4.82887394,3787.1,3787.0,0.001]
[1760716267365,5.04664377,3787.1,3787.0,0.001]
[1760716267864,18.69052377,3787.1,3787.0,0.001]
[1760716268272,17.03206677,3787.1,3787.0,0.001]
[1760716268564,13.70975585,3787.1,3787.0,0.001]
[1760716268769,7.26922603,3787.1,3787.0,0.001]
[1760716269275,13.72238403,3787.1,3787.0,0.001]
[1760716269473,13.72238403,3787.1,3786.6,0.001]
[1760716269474,3.27442182,3786.7,3786.6,0.001]
[1760716269640,28.32078255,3786.7,3786.6,0.001]
[1760716269848,20.61117355,3786.7,3786.6,0.001]
[1760716270156,21.57840095,3786.7,3786.6,0.001]
[1760716270575,20.94480095,3786.7,3786.6,0.001]
[1760716270875,5.44224922,3786.7,3786.6,0.001]
[1760716271061,4.78316898,3786.7,3786.6,0.001]
[1760716271372,4.82920887,3786.7,3786.6,0.001]
[1760716271573,4.82920887,3786.7,3786.6,0.011]
[1760716271949,4.93620887,3786.7,3786.6,0.011]
[1760716272544,45.2828686,3786.7,3786.6,0.011]
[1760716272748,31.19368856,3786.7,3786.6,1e-08]
[1760716273384,5.00284032,3786.1,3786.0,0.001]
[1760716273586,3.2751194,3785.7,3784.5,0.4684]
[1760716273794,3.2751194,3785.7,3785.2,0.2253]
[1760716274146,3.73560159,3785.7,3785.2,0.2253]
[1760716274354,4.13167229,3785.7,3785.0,0.4684]
[1760716274675,4.13167229,3785.7,3784.9,0.2253]
[1760716274676,0.2314,3789.2,3785.7,3.534385]
[1760716274842,0.2314,3790.1,3785.7,3.534385]
[1760716274843,0.10969539,3788.8,3786.0,2.3616]
[1760716275042,0.10969539,3788.8,3786.1,0.55348995]
[1760716275043,0.6989,3788.8,3786.1,0.55348995]
[1760716275279,5.48162,3788.6,3786.1,0.55348995]
[1760716275512,5.48162,3788.6,3785.8,0.6336]
[1760716275513,0.4675,3788.5,3785.8,0.6336]
[1760716275662,2.26096842,3788.4,3785.9,0.3276132]
[1760716275858,2.64016415,3787.7,3786.0,1.728]
[1760716276048,2.8715229,3787.8,3786.0,2.64126998]
[1760716276383,3.1072066,3788.3,3785.8,1.728]
[1760716276566,2.98211617,3788.8,3786.0,0.6336]
[1760716276567,2.651858,3788.7,3786.0,0.6336]
[1760716276769,0.4675,3788.7,3786.2,15.50255173]
[1760716276987,0.6989,3789.4,3786.9,0.6336]
[1760716277279,1.728,3789.0,3787.4,2.64032068]
[1760716277482,2.639063,3789.3,3787.6,2.64014881]
[1760716277782,0.81114833,3789.4,3787.6,2.64014923]
[1760716278285,0.6981,3789.4,3786.9,2.3616]
[1760716278448,0.6981,3789.4,3786.3,1.61361517]
[1760716278449,1.728,3787.8,3786.3,1.61361517]
[1760716278649,1.728,3787.8,3785.8,1.729]
[1760716278650,2.6401149,3787.8,3785.8,1.729]
[1760716278864,0.2314,3787.9,3785.8,1.729]
[1760716278865,0.2314,3787.9,3786.4,2.64101979]
[1760716279062,1.9594,3787.9,3785.9,0.6336]
[1760716279274,0.2314,3787.9,3785.8,1.729]
[1760716279474,4.36813734,3787.7,3785.8,4.37044962]
[1760716279677,2.50330493,3787.7,3785.9,1.98740014]
[1760716279881,0.77530493,3787.7,3785.9,1.98740014]
[1760716280198,1.728,3787.7,3785.9,1.98740014]
[1760716280505,0.6989,3787.9,3786.0,0.6600131]
[1760716280506,1.728,3787.9,3786.0,0.6600131]
[1760716280716,0.04602525,3788.0,3786.4,0.6336]
[1760716280922,0.04602525,3788.0,3787.1,0.6336]
[1760716281067,0.002,3788.3,3787.2,0.02640473]
[1760716281266,0.002,3788.3,3787.5,2.64019744]
[1760716281592,0.002,3788.3,3787.7,2.64011593]
[1760716281796,0.002,3788.3,3787.4,0.6336]
[1760716282114,0.002,3788.3,3788.2,2.63977614]
[1760716282296,0.002,3788.3,3788.2,2.6661739]
[1760716282497,0.002,3788.3,3788.2,21.06092974]
[1760716282688,0.002,3788.3,3788.2,21.03453198]
[1760716283086,0.002,3788.7,3788.6,2.63949743]
[1760716283299,0.002,3789.1,3789.0,3.27281879]
[1760716283507,0.002,3789.1,3789.0,18.77537052]
[1760716283796,0.002,3789.1,3789.0,21.08963844]
[1760716284172,0.2276,3792.8,3789.1,16.617499]
[1760716284376,0.2276,3793.8,3791.5,15.50255173]
[1760716284377,0.65,3792.7,3791.5,15.50255173]
[1760716284606,0.65,3792.7,3791.6,0.02637409]
[1760716284810,0.7812,3792.7,3792.1,0.1312]
[1760716285105,0.7812,3792.7,3792.3,0.6336]
[1760716285106,0.65,3792.7,3792.3,0.6336]
[1760716285307,0.65,3792.7,3792.6,0.6336]
[1760716285611,0.65,3792.7,3792.6,3.29668073]
[1760716285912,0.002,3794.0,3793.2,2.63623131]
[1760716286219,0.002,3794.0,3793.5,2.63608804]
[1760716286402,0.002,3794.0,3793.3,0.52726266]
[1760716286603,0.002,3794.0,3793.4,0.65996157]
[1760716286837,0.002,3794.0,3793.5,3.26968804]
[1760716287407,0.002,3794.0,3793.3,2.25526266]
[1760716287606,0.002,3794.0,3793.1,0.6336]
[1760716287780,0.002,3794.0,3793.2,0.02636296]
[1760716287999,0.002,3794.0,3793.1,0.6336]
[1760716288000,0.002,3794.0,3793.5,0.6336]
[1760716288203,0.002,3794.0,3793.5,3.26968804]
[1760716288419,0.002,3794.0,3793.5,18.77223977]
[1760716288601,0.002,3794.0,3793.5,2.14084589]
[1760716288802,0.002,3794.0,3793.1,3.2699604]
[1760716289090,0.002,3794.0,3792.7,15.50255173]
[1760716289286,0.002,3794.0,3793.0,2.63638435]
[1760716289588,0.002,3794.0,3793.0,0.6336]
[1760716289790,0.002,3794.0,3792.9,3.27009268]
[1760716290122,0.652,3793.6,3793.3,15.50255173]
[1760716290298,0.652,3793.6,3793.2,2.63628466]
[1760716290498,0.652,3793.6,3793.1,0.6336]
[1760716291022,0.652,3793.6,3793.0,2.05006444]
[1760716291023,0.652,3793.6,3793.2,2.63629219]
[1760716291226,0.652,3793.6,3792.7,0.6336]
[1760716291400,0.652,3793.6,3793.1,2.63634366]
[1760716291599,0.652,3793.6,3792.8,0.29952]
[1760716291600,0.652,3793.6,3793.2,0.02636296]
[1760716291800,0.652,3793.6,3793.5,20.50023977]
[1760716292005,0.002,3794.0,3793.9,3.26941011]
[1760716292204,0.002,3794.0,3793.9,3.29576821]
[1760716292403,0.002,3794.0,3793.9,7.84617907]
[1760716292604,0.002,3794.8,3794.3,3.26913224]
[1760716292804,0.002,3794.8,3794.7,4.99685443]
[1760716293006,0.002,3794.8,3794.7,5.02320697]
[1760716293226,0.002,3794.8,3794.7,14.99436097]
[1760716293524,0.025,3795.0,3794.9,8.18924954]
[1760716294027,0.025,3795.0,3794.9,4.99671554]
[1760716295018,0.025,3795.0,3794.9,5.12791554]
[1760716297905,0.025,3795.0,3794.9,12.84241554]
[1760716298105,0.025,3795.0,3794.9,8.40091554]
[1760716298407,0.2276,3797.1,3795.1,4.99657668]
[1760716298631,0.2276,3797.1,3795.1,16.86893644]
[1760716298816,0.2276,3797.1,3795.3,0.6336]
[1760716299018,0.1312,3797.6,3796.5,0.6336]
[1760716299358,0.05,3801.0,3796.5,0.6336]
[1760716299359,0.46174513,3798.3,3797.2,2.63351943]
[1760716299514,0.00394513,3798.3,3797.7,0.6336]
[1760716299843,0.00394513,3798.3,3797.3,0.33983194]
[1760716299844,0.2276,3797.8,3797.3,0.33983194]
[1760716300043,0.4578,3797.7,3797.2,0.6336]
[1760716300231,0.2276,3797.8,3797.2,3.26711871]
[1760716300554,0.00394513,3798.3,3796.4,5.67661931]
[1760716300555,0.00394513,3798.3,3797.6,0.6336]
[1760716300746,0.00394513,3798.3,3796.5,1.728]
[1760716300747,0.4578,3798.2,3796.5,1.728]
[1760716300957,0.4578,3798.1,3796.6,1.0879]
[1760716301246,0.4578,3798.0,3795.7,2.1858]
[1760716301433,0.6846,3797.9,3795.8,0.0012]
[1760716301621,0.6846,3797.9,3795.8,0.6348]
[1760716301827,0.6846,3797.9,3796.6,0.6336]
[1760716302045,0.6846,3797.9,3796.7,0.6336]
[1760716302224,0.6846,3797.9,3796.7,1.22375627]
[1760716302616,0.6846,3797.9,3796.8,2.63374285]
[1760716302821,0.2268,3797.9,3796.9,0.02633727]
[1760716303128,0.46174513,3798.3,3797.3,2.63343194]
[1760716303631,0.46174513,3798.3,3797.1,2.63358816]
[1760716303955,0.46174513,3798.3,3796.5,2.635205]
[1760716303956,0.46174513,3798.3,3797.2,2.63351749]
[1760716304254,0.4578,3798.2,3796.7,0.6336]
[1760716304422,0.4578,3798.2,3796.9,2.3616]
[1760716304618,0.4578,3798.2,3796.7,0.6336]
[1760716304824,0.4578,3798.2,3797.0,0.6336]
[1760716305216,0.4578,3798.2,3796.9,2.3616]
[1760716305418,0.4578,3798.1,3797.0,0.49953548]
[1760716305856,0.4578,3798.1,3796.4,30.0]
[1760716306068,0.4578,3798.1,3796.8,0.6336]
[1760716306266,0.4578,3798.0,3796.5,1.728]
[1760716306565,0.4578,3798.0,3796.6,4.99552627]
[1760716306566,0.2276,3797.9,3796.6,4.99552627]
[1760716306786,0.2276,3797.9,3796.9,2.63372206]
[1760716306980,0.2276,3797.9,3796.9,0.52675836]
[1760716307123,0.2276,3797.9,3796.2,2.6341616]
[1760716307124,2.63323259,3797.7,3796.2,2.6341616]
[1760716307320,0.4578,3797.6,3795.7,0.0012]
[1760716307554,3.09108077,3797.6,3795.7,0.0012]
[1760716307845,0.4578,3797.6,3795.9,0.6336]
[1760716308036,0.4578,3797.5,3796.1,0.6336]
[1760716308253,2.8606894,3797.9,3796.2,0.49959456]
[1760716308254,0.4578,3797.4,3796.2,0.49959456]
[1760716308561,0.4578,3797.4,3795.2,0.79178339]
[1760716308562,0.4578,3797.4,3795.1,2.8142]
[1760716308772,0.4578,3797.3,3795.3,2.63483782]
[1760716308975,0.4578,3797.3,3796.2,2.63416668]
[1760716309126,0.4578,3797.3,3796.3,0.02634143]
[1760716309328,0.4578,3797.3,3797.2,0.1312]
[1760716309731,0.4578,3797.3,3796.9,0.1312]
[1760716309933,0.1312,3797.6,3796.9,0.1312]
[1760716310134,0.4578,3797.5,3796.9,0.1312]
[1760716310746,0.4578,3797.5,3796.0,2.63428429]
[1760716310747,2.63354256,3797.2,3795.4,0.0012]
[1760716310934,0.1312,3797.3,3796.7,0.1312]
[1760716311141,0.2276,3796.8,3795.0,0.0012]
[1760716311570,0.4557,3796.7,3795.1,2.63491567]
[1760716311770,0.4557,3796.7,3795.0,0.0012]
[1760716311970,0.2276,3796.8,3794.1,1.84944434]
[1760716311971,0.4557,3796.6,3794.2,11.093282]
[1760716312177,0.4557,3796.5,3794.6,1.728]
[1760716312362,3.08970884,3796.5,3794.8,2.63518498]
[1760716312568,0.4557,3796.4,3794.7,0.9490156]
[1760716312878,0.4557,3796.4,3794.3,0.0012]
[1760716312879,2.63421316,3796.2,3794.3,0.0012]
[1760716313180,2.63421316,3796.2,3794.0,2.63571275]
[1760716313181,0.4557,3796.3,3794.0,2.63694064]
[1760716313346,0.27352138,3796.8,3794.0,15.63251155]
[1760716313347,0.4557,3796.2,3794.0,15.63251155]
[1760716313549,2.6346556,3795.6,3794.0,15.63131155]
[1760716313873,0.6928,3795.5,3793.9,0.76596796]